fUSD/lending_fUSD_20251017
["ID","MTS","AMOUNT","RATE_DAILY","PERIOD"]
[391667908,1760723477412,-207.757711,0.00037869,120]
[391667909,1760723477421,-207.757711,0.00037869,120]
[391667910,1760723477431,-714.330354,0.00037869,120]
[391667911,1760723477440,-151.0,0.00037869,120]
[391667912,1760723477449,-151.0,0.00037869,120]
[391667913,1760723477459,-207.757711,0.00037869,120]
[391667914,1760723477468,-714.330354,0.00037869,120]
[391667915,1760723477477,-714.330354,0.00037869,120]
[391667916,1760723477488,-207.757711,0.00037869,120]
[391667917,1760723477498,-151.0,0.00037869,120]
[391667918,1760723477507,-205.488256,0.00037869,120]
[391667919,1760723477516,-151.0,0.00037869,30]
[391667920,1760723477525,-205.488256,0.00037869,120]
[391667921,1760723477535,-205.488256,0.00037869,120]
[391667922,1760723477544,-151.0,0.00037869,120]
[391667923,1760723477554,-299.817836,0.00037869,120]
[391667924,1760723477563,-205.488256,0.00037869,120]
[391667925,1760723477573,-151.0,0.00037869,120]
[391667926,1760723477582,-151.0,0.00037869,120]
[391667927,1760723477593,-299.817836,0.00037869,120]
[391667928,1760723477604,-3393.423839,0.00037869,30]
[391667929,1760723477616,-299.817836,0.00037869,120]
[391667930,1760723477627,-3393.423839,0.00037869,30]
[391667931,1760723477636,-299.817836,0.00037869,120]
[391667932,1760723477646,-151.0,0.00037869,90]
[391667933,1760723477656,-3393.423839,0.00037869,30]
[391667934,1760723477665,-3393.423839,0.00037869,30]
[391667935,1760723477677,-151.0,0.00037869,120]
[391667936,1760723477687,-151.0,0.00037869,120]
[391667937,1760723477696,-151.0,0.00037869,120]
[391667938,1760723477705,-151.0,0.00037869,120]
[391667939,1760723477715,-151.0,0.00037869,120]
[391667940,1760723477724,-151.0,0.00037869,120]
[391667941,1760723477733,-286.999842,0.00037869,120]
[391667942,1760723477744,-151.0,0.00037869,120]
[391667943,1760723477754,-151.0,0.00037869,120]
[391667944,1760723477763,-151.0,0.00037869,120]
[391667945,1760723477772,-274.313792,0.00037869,120]
[391667946,1760723477781,-151.0,0.00037869,120]
[391667947,1760723477791,-274.313792,0.00037869,120]
[391667948,1760723477800,-151.0,0.00037869,120]
[391667949,1760723477809,-365.590905,0.00037869,120]
[391667950,1760723477818,-274.313792,0.00037869,120]
[391667951,1760723477828,-365.590905,0.00037869,120]
[391667952,1760723477837,-365.590905,0.00037869,120]
[391667953,1760723477847,-274.313792,0.00037869,120]
[391667954,1760723477856,-365.590905,0.00037869,120]
[391667955,1760723477868,-151.0,0.00037869,120]
[391667956,1760723477877,-151.0,0.00037869,120]
[391667957,1760723477887,-151.0,0.00037869,120]
[391667958,1760723477896,-198.58937925,0.0003788,2]
[391667959,1760723477905,-709.91,0.000379,120]
[391667960,1760723477915,-179.0,0.000379,120]
[391667961,1760723477924,-152.0,0.00037955,6]
[391667962,1760723477933,-161.76895716,0.0003796,2]
[391667963,1760723477943,-780.2119219,0.00037999,120]
[391667964,1760723477952,-1000.0,0.00038,120]
[391667965,1760723477962,-989.199418,0.00038,120]
[391667966,1760723477971,-300.0,0.00038,10]
[391667967,1760723477980,-812.04,0.00038,2]
[391667968,1760723477990,-8244.08512247,0.00038,2]
[391667969,1760723478000,-1864.81995874,0.00038,120]
[391667970,1760723478009,-272.99105481,0.00038,120]
[391667971,1760723478018,-500.0,0.00038,120]
[391667972,1760723478028,-400.0,0.00038,120]
[391667973,1760723478038,-1500.0,0.00038,120]
[391667974,1760723478047,-47488.2913,0.00038,120]
[391667975,1760723478056,-153.0,0.00038,120]
[391667976,1760723478066,-211.036725,0.00038,120]
[391667977,1760723478076,-211.036725,0.00038,120]
[391667978,1760723478086,-211.036725,0.00038,120]
[391667979,1760723478095,-300.528512,0.00038,120]
[391667980,1760723478105,-211.036725,0.00038,120]
[391667981,1760723478115,-151.0,0.00038,120]
[391667982,1760723478125,-151.0,0.00038,120]
[391667983,1760723478134,-151.0,0.00038,120]
[391667984,1760723478144,-970.0,0.00038,2]
[391667985,1760723478153,-151.0,0.00038,120]
[391667986,1760723478163,-151.0,0.00038,120]
[391667987,1760723478172,-151.0,0.00038,120]
[391667988,1760723478182,-315.603528,0.00038,120]
[391667989,1760723478191,-151.0,0.00038,120]
[391667990,1760723478200,-315.603528,0.00038,120]
[391667991,1760723478209,-151.0,0.00038,120]
[391667992,1760723478219,-197.521142,0.00038,120]
[391667993,1760723478228,-151.0,0.00038,120]
[391667994,1760723478238,-315.603528,0.00038,120]
[391667995,1760723478247,-151.0,0.00038,120]
[391667996,1760723478256,-9929.1196631,0.00038065,2]
[391667997,1760723478266,-1661.5425126,0.00038065,2]
[391667998,1760723478275,-2000.0,0.00038201,120]
[391667999,1760723478284,-394.57666118,0.00038312,2]
[391668000,1760723478293,-1579.12,0.00038356,120]
[391668001,1760723478303,-11293.4375,0.00038356,6]
[391668002,1760723478312,-13485.2,0.00038356,10]
[391668003,1760723478322,-1091.0,0.00038367,5]
[391668004,1760723478332,-347.00407154,0.0003843,2]
[391668005,1760723478341,-344.91441206,0.0003843,2]
[391668006,1760723478351,-775.47832561,0.00038434,2]
[391668007,1760723478362,-2864.78897835,0.000386,120]
[391668008,1760723478372,-179.0,0.000386,120]
[391668009,1760723478381,-500.0,0.00038636,7]
[391668010,1760723478391,-1900.0,0.00038636,7]
[391668011,1760723478400,-213.94386236,0.00038646,60]
[391668012,1760723478410,-1963.97,0.00038657,120]
[391668013,1760723478419,-1963.97,0.00038657,120]
[391668014,1760723478429,-1963.97,0.00038657,120]
[391668015,1760723478438,-1963.97,0.00038657,120]
[391668016,1760723478448,-1963.97,0.00038657,120]
[391668017,1760723478457,-1963.97,0.00038657,120]
[391668018,1760723478466,-1963.97,0.00038657,120]
[391668019,1760723478475,-1963.97,0.00038657,120]
[391668020,1760723478485,-1963.97,0.00038657,120]
[391668021,1760723478494,-1963.97,0.00038657,120]
[391668022,1760723478503,-1963.97,0.00038657,120]
[391668023,1760723478512,-1963.97,0.00038657,120]
[391668024,1760723478522,-1963.97,0.00038657,120]
[391668025,1760723478531,-1963.97,0.00038657,120]
[391668026,1760723478541,-1963.97,0.00038657,120]
[391668027,1760723478550,-1963.97,0.00038657,120]
[391668028,1760723478559,-1963.97,0.00038657,120]
[391668029,1760723478568,-1963.97,0.00038657,120]
[391668030,1760723478682,-1963.97,0.00038657,120]
[391668031,1760723478694,-1963.97,0.00038657,120]
[391668032,1760723478703,-1963.97,0.00038657,120]
[391668033,1760723478713,-1963.97,0.00038657,120]
[391668034,1760723478722,-1963.97,0.00038657,120]
[391668035,1760723478731,-1964.13858849,0.00038657,120]
[391668036,1760723478741,-1000.0,0.00038666,30]
[391668037,1760723478750,-151.0,0.00038797,14]
[391668038,1760723478760,-300.0,0.00038799,10]
[391668039,1760723478769,-300.0,0.00038799,10]
[391668040,1760723478779,-300.0,0.00038799,10]
[391668041,1760723478789,-10656.5,0.00038799,120]
[391668042,1760723478798,-1754.97768473,0.000388,120]
[391668043,1760723478807,-100773.98452229,0.000388,30]
[391668044,1760723478817,-1433064.1,0.000388,120]
[391668045,1760723478827,-108800.55518323,0.000388,30]
[391668046,1760723478836,-151.0,0.000388,120]
[391668047,1760723478846,-151.0,0.000388,120]
[391668048,1760723478856,-151.0,0.000388,120]
[391668049,1760723478867,-151.0,0.000388,120]
[391668050,1760723478877,-151.0,0.000388,120]
[391668051,1760723478886,-151.0,0.000388,120]
[391668052,1760723478895,-151.0,0.000388,120]
[391668053,1760723478905,-151.0,0.000388,120]
[391668054,1760723478915,-151.0,0.000388,120]
[391668055,1760723478925,-151.0,0.000388,120]
[391668056,1760723478935,-151.0,0.000388,120]
[391668057,1760723478944,-151.0,0.000388,120]
[391668058,1760723478954,-176.433698,0.000388,120]
[391668059,1760723478964,-151.0,0.000388,120]
[391668060,1760723478974,-151.0,0.000388,120]
[391668061,1760723478983,-151.0,0.000388,120]
[391668062,1760723478992,-151.0,0.000388,120]
[391668063,1760723479003,-151.0,0.000388,120]
[391668064,1760723479013,-151.0,0.000388,120]
[391668065,1760723479023,-151.0,0.000388,120]
[391668066,1760723479033,-151.0,0.000388,120]
[391668067,1760723479042,-151.0,0.000388,120]
[391668068,1760723479051,-151.0,0.000388,120]
[391668069,1760723479062,-151.0,0.000388,120]
[391668070,1760723479072,-151.0,0.000388,120]
[391668071,1760723479082,-151.0,0.000388,120]
[391668072,1760723479092,-151.0,0.000388,120]
[391668073,1760723479101,-151.0,0.000388,120]
[391668074,1760723479111,-151.0,0.000388,120]
[391668075,1760723479121,-151.0,0.000388,120]
[391668076,1760723479131,-151.0,0.000388,120]
[391668077,1760723479141,-151.0,0.000388,120]
[391668078,1760723479151,-151.0,0.000388,120]
[391668079,1760723479161,-151.0,0.000388,30]
[391668080,1760723479171,-151.0,0.000388,120]
[391668081,1760723479180,-151.0,0.000388,14]
[391668082,1760723479190,-151.0,0.000388,120]
[391668083,1760723479200,-151.0,0.000388,120]
[391668084,1760723479210,-151.0,0.000388,120]
[391668085,1760723479219,-151.0,0.000388,120]
[391668086,1760723479229,-151.0,0.000388,120]
[391668087,1760723479239,-151.0,0.000388,120]
[391668088,1760723479248,-151.0,0.000388,120]
[391668089,1760723479258,-229.716232,0.000388,120]
[391668090,1760723479268,-151.0,0.000388,120]
[391668091,1760723479279,-151.0,0.000388,120]
[391668092,1760723479288,-151.0,0.000388,120]
[391668093,1760723479298,-151.0,0.000388,120]
[391668094,1760723479308,-151.0,0.000388,120]
[391668095,1760723479318,-151.0,0.000388,120]
[391668096,1760723479327,-151.0,0.000388,120]
[391668097,1760723479336,-151.0,0.000388,120]
[391668098,1760723479347,-151.0,0.000388,120]
[391668099,1760723479356,-151.0,0.000388,120]
[391668100,1760723479369,-151.0,0.000388,30]
[391668101,1760723479378,-151.0,0.000388,120]
[391668102,1760723479388,-151.0,0.000388,120]
[391668103,1760723479398,-151.0,0.000388,120]
[391668104,1760723479407,-151.0,0.000388,120]
[391668105,1760723479416,-151.0,0.000388,120]
[391668106,1760723479426,-151.0,0.000388,120]
[391668107,1760723479435,-151.0,0.000388,120]
[391668108,1760723479444,-151.0,0.000388,120]
[391668109,1760723479454,-151.0,0.000388,120]
[391668110,1760723479463,-151.0,0.000388,120]
[391668111,1760723479472,-151.0,0.000388,120]
[391668112,1760723479482,-151.0,0.000388,120]
[391668113,1760723479491,-151.0,0.000388,120]
[391668114,1760723479501,-151.0,0.000388,120]
[391668115,1760723479511,-151.0,0.000388,15]
[391668116,1760723479520,-151.0,0.000388,15]
[391668117,1760723479529,-151.0,0.000388,120]
[391668118,1760723479538,-151.0,0.000388,120]
[391668119,1760723479547,-151.0,0.000388,120]
[391668120,1760723479556,-151.0,0.000388,120]
[391668121,1760723479566,-151.0,0.000388,120]
[391668122,1760723479575,-151.0,0.000388,120]
[391668123,1760723479585,-202.077317,0.000388,120]
[391668124,1760723479596,-202.077317,0.000388,120]
[391668125,1760723479606,-202.077317,0.000388,120]
[391668126,1760723479617,-396.241571,0.000388,120]
[391668127,1760723479627,-151.0,0.000388,120]
[391668128,1760723479637,-396.241571,0.000388,120]
[391668129,1760723479647,-202.077317,0.000388,120]
[391668130,1760723479655,-396.241571,0.000388,120]
[391668131,1760723479666,-359.033648,0.000388,120]
[391668132,1760723479678,-396.241571,0.000388,120]
[391668133,1760723479688,-359.033648,0.000388,120]
[391668134,1760723479698,-359.033648,0.000388,120]
[391668135,1760723479707,-151.0,0.000388,120]
[391668136,1760723479716,-359.033648,0.000388,120]
[391668137,1760723479726,-151.0,0.000388,120]
[391668138,1760723479736,-151.0,0.000388,120]
[391668139,1760723479746,-151.0,0.000388,120]
[391668140,1760723479755,-151.0,0.000388,120]
[391668141,1760723479765,-151.0,0.000388,120]
[391668142,1760723479775,-151.0,0.000388,120]
[391668143,1760723479784,-151.0,0.000388,120]
[391668144,1760723479794,-151.0,0.000388,30]
[391668145,1760723479804,-151.0,0.000388,120]
[391668146,1760723479813,-751.682811,0.000388,120]
[391668147,1760723479823,-751.682811,0.000388,120]
[391668148,1760723479832,-751.682811,0.000388,120]
[391668149,1760723479842,-751.682811,0.000388,120]
[391668150,1760723479851,-151.0,0.000388,120]
[391668151,1760723479861,-151.0,0.000388,120]
[391668152,1760723479870,-151.0,0.000388,120]
[391668153,1760723479880,-151.0,0.000388,120]
[391668154,1760723479890,-151.0,0.000388,120]
[391668155,1760723479900,-151.0,0.000388,120]
[391668156,1760723479910,-151.0,0.000388,120]
[391668157,1760723479920,-151.0,0.000388,120]
[391668158,1760723479929,-151.0,0.000388,120]
[391668159,1760723479940,-151.0,0.000388,120]
[391668160,1760723479950,-151.0,0.000388,120]
[391668161,1760723479960,-615.409153,0.000388,120]
[391668162,1760723479970,-151.0,0.000388,120]
[391668163,1760723479979,-615.409153,0.000388,120]
[391668164,1760723479989,-615.409153,0.000388,120]
[391668165,1760723479999,-615.409153,0.000388,120]
[391668166,1760723480010,-545.756694,0.000388,120]
[391668167,1760723480020,-545.756694,0.000388,120]
[391668168,1760723480030,-545.756694,0.000388,120]
[391668169,1760723480040,-545.756694,0.000388,120]
[391668170,1760723480050,-714.330354,0.000388,120]
[391668171,1760723480059,-207.757711,0.000388,120]
[391668172,1760723480069,-207.757711,0.000388,120]
[391668173,1760723480079,-714.330354,0.000388,120]
[391668174,1760723480088,-151.0,0.000388,120]
[391668175,1760723480098,-151.0,0.000388,120]
[391668176,1760723480107,-714.330354,0.000388,120]
[391668177,1760723480117,-207.757711,0.000388,120]
[391668178,1760723480126,-714.330354,0.000388,120]
[391668179,1760723480136,-207.757711,0.000388,120]
[391668180,1760723480147,-205.488256,0.000388,120]
[391668181,1760723480156,-151.0,0.000388,30]
[391668182,1760723480165,-205.488256,0.000388,120]
[391668183,1760723480175,-205.488256,0.000388,120]
[391668184,1760723480184,-151.0,0.000388,120]
[391668185,1760723480194,-299.817836,0.000388,120]
[391668186,1760723480204,-205.488256,0.000388,120]
[391668187,1760723480213,-151.0,0.000388,120]
[391668188,1760723480223,-151.0,0.000388,120]
[391668189,1760723480232,-299.817836,0.000388,120]
[391668190,1760723480242,-3393.423839,0.000388,30]
[391668191,1760723480252,-299.817836,0.000388,120]
[391668192,1760723480261,-3393.423839,0.000388,30]
[391668193,1760723480271,-299.817836,0.000388,120]
[391668194,1760723480280,-151.0,0.000388,90]
[391668195,1760723480289,-3393.423839,0.000388,30]
[391668196,1760723480299,-3393.423839,0.000388,30]
[391668197,1760723480309,-151.0,0.000388,120]
[391668198,1760723480318,-152.019819,0.000388,120]
[391668199,1760723480327,-151.0,0.000388,120]
[391668200,1760723480337,-151.0,0.000388,120]
[391668201,1760723480347,-151.0,0.000388,120]
[391668202,1760723480357,-151.0,0.000388,120]
[391668203,1760723480368,-152.987597,0.000388,120]
[391668204,1760723480377,-156.415448,0.000388,120]
[391668205,1760723480388,-151.0,0.000388,120]
[391668206,1760723480397,-274.313792,0.000388,120]
[391668207,1760723480408,-151.0,0.000388,120]
[391668208,1760723480418,-151.0,0.000388,120]
[391668209,1760723480428,-151.0,0.000388,120]
[391668210,1760723480438,-274.313792,0.000388,120]
[391668211,1760723480447,-151.0,0.000388,120]
[391668212,1760723480457,-365.590905,0.000388,120]
[391668213,1760723480467,-151.0,0.000388,120]
[391668214,1760723480476,-2126.104239,0.000388,120]
[391668215,1760723480486,-274.313792,0.000388,120]
[391668216,1760723480495,-365.590905,0.000388,120]
[391668217,1760723480505,-2126.104239,0.000388,120]
[391668218,1760723480515,-365.590905,0.000388,120]
[391668219,1760723480524,-2126.104239,0.000388,120]
[391668220,1760723480533,-274.313792,0.000388,120]
[391668221,1760723480543,-365.590905,0.000388,120]
[391668222,1760723480553,-2126.104239,0.000388,120]
[391668223,1760723480563,-151.0,0.000388,120]
[391668224,1760723480572,-151.0,0.000388,120]
[391668225,1760723480582,-4206.947105,0.000388,120]
[391668226,1760723480592,-151.0,0.000388,120]
[391668227,1760723480604,-151.0,0.000388,120]
[391668228,1760723480615,-4206.947105,0.000388,120]
[391668229,1760723480624,-151.0,0.000388,120]
[391668230,1760723480635,-200.488771,0.000388,120]
[391668231,1760723480644,-398.823526,0.000388,120]
[391668232,1760723480654,-151.0,0.000388,120]
[391668233,1760723480663,-4206.947105,0.000388,120]
[391668234,1760723480675,-151.0,0.000388,120]
[391668235,1760723480684,-398.823526,0.000388,120]
[391668236,1760723480693,-151.0,0.000388,120]
[391668237,1760723480702,-4206.947105,0.000388,120]
[391668238,1760723480712,-164.573965,0.000388,120]
[391668239,1760723480721,-151.0,0.000388,120]
[391668240,1760723480731,-398.823526,0.000388,120]
[391668241,1760723480740,-151.0,0.000388,120]
[391668242,1760723480749,-151.0,0.000388,120]
[391668243,1760723480759,-398.823526,0.000388,120]
[391668244,1760723480768,-151.0,0.000388,120]
[391668245,1760723480778,-151.0,0.000388,120]
[391668246,1760723480788,-151.0,0.000388,120]
[391668247,1760723480797,-174.052081,0.000388,120]
[391668248,1760723480807,-151.0,0.000388,120]
[391668249,1760723480816,-264.585435,0.000388,120]
[391668250,1760723480826,-174.052081,0.000388,120]
[391668251,1760723480835,-264.585435,0.000388,120]
[391668252,1760723481102,-174.052081,0.000388,120]
[391668253,1760723481118,-264.585435,0.000388,120]
[391668254,1760723481128,-174.052081,0.000388,120]
[391668255,1760723481137,-264.585435,0.000388,120]
[391668256,1760723481147,-232.323283,0.000388,120]
[391668257,1760723481156,-232.323283,0.000388,120]
[391668258,1760723481166,-151.0,0.000388,120]
[391668259,1760723481176,-232.323283,0.000388,120]
[391668260,1760723481185,-232.323283,0.000388,120]
[391668261,1760723481194,-151.0,0.000388,120]
[391668262,1760723481204,-170.721152,0.000388,120]
[391668263,1760723481213,-151.0,0.000388,120]
[391668264,1760723481223,-174.422103,0.000388,20]
[391668265,1760723481232,-174.422103,0.000388,20]
[391668266,1760723481242,-174.422103,0.000388,20]
[391668267,1760723481252,-151.0,0.000388,120]
[391668268,1760723481261,-174.422103,0.000388,20]
[391668269,1760723481271,-211.036725,0.000388,120]
[391668270,1760723481281,-151.0,0.000388,120]
[391668271,1760723481291,-211.036725,0.000388,120]
[391668272,1760723481300,-211.036725,0.000388,120]
[391668273,1760723481309,-211.036725,0.000388,120]
[391668274,1760723481319,-151.0,0.000388,120]
[391668275,1760723481328,-151.0,0.000388,120]
[391668276,1760723481338,-151.0,0.000388,120]
[391668277,1760723481348,-151.0,0.000388,120]
[391668278,1760723481358,-151.0,0.000388,120]
[391668279,1760723481368,-151.0,0.000388,120]
[391668280,1760723481378,-270.134663,0.000388,120]
[391668281,1760723481387,-151.0,0.000388,120]
[391668282,1760723481396,-151.797954,0.000388,120]
[391668283,1760723481406,-315.603528,0.000388,120]
[391668284,1760723481415,-151.0,0.000388,120]
[391668285,1760723481424,-151.0,0.000388,120]
[391668286,1760723481434,-315.603528,0.000388,120]
[391668287,1760723481443,-151.0,0.000388,120]
[391668288,1760723481452,-315.603528,0.000388,120]
[391668289,1760723481462,-151.0,0.000388,120]
[391668290,1760723481471,-162.43040712,0.00038832,12]
[391668291,1760723481480,-300.0,0.00038835,10]
[391668292,1760723481490,-300.0,0.00038835,10]
[391668293,1760723481499,-300.0,0.00038835,10]
[391668294,1760723481509,-1000.0,0.00038872,8]
[391668295,1760723481518,-300.0,0.00038889,10]
[391668296,1760723481528,-300.0,0.00038889,10]
[391668297,1760723481538,-302.85637029,0.00038889,10]
[391668298,1760723481547,-3080.76535364,0.0003889,30]
[391668299,1760723481557,-300.0,0.00038899,10]
[391668300,1760723481566,-5000.0,0.000389,120]
[391668301,1760723481576,-2300.0,0.000389,14]
[391668302,1760723481586,-350.29185944,0.00038904,90]
[391668303,1760723481598,-300.0,0.00038989,10]
[391668304,1760723481608,-7761.43826294,0.0003899,14]
[391668305,1760723481618,-1548.7176209,0.0003899,120]
[391668306,1760723481627,-300.0,0.00038999,10]
[391668307,1760723481638,-661.89391383,0.00039,2]
[391668308,1760723481648,-54184.60900773,0.00039,10]
[391668309,1760723481943,-506.7,0.0002403,30]
[391668310,1760723481953,-500.0,0.00024657,2]
[391668311,1760723481963,-3874.200899,0.00024657,2]
[391668312,1760723481974,-500.0,0.00024931,2]
[391668313,1760723481985,-500.0,0.00025205,2]
[391668314,1760723481995,-500.0,0.00025479,2]
[391668315,1760723482006,-505.12,0.00025479,2]
[391668316,1760723482016,-207.63,0.00025753,2]
[391668317,1760723482027,-506.7,0.00029011,30]
[391668318,1760723482037,-6445.0,0.00033073,2]
[391668319,1760723482048,-506.7,0.00033992,120]
[391668320,1760723482058,-151.0,0.000348,30]
[391668321,1760723482068,-315.603528,0.000348,30]
[391668322,1760723482078,-6445.0,0.00036073,2]
[391668323,1760723482088,-197.799123,0.00038,120]
[391668324,1760723482098,-315.603528,0.00038,120]
[391668325,1760723482107,-315.603528,0.000388,120]
[391668326,1760723482121,-506.7,0.00038974,120]
[391668327,1760723482131,-16624.57193556,0.00039,10]
[391668328,1760723482140,-2854.78535069,0.00039,30]
[391668329,1760723482149,-2174.67325129,0.00039,120]
[391668330,1760723482159,-2307.82437279,0.00039,120]
[391668331,1760723482167,-1500.38146591,0.00039,120]
[391668332,1760723482177,-500.0,0.00039,120]
[391668333,1760723482187,-500.0,0.00039,120]
[391668334,1760723482196,-1500.0,0.00039,120]
[391668335,1760723482206,-2800.0,0.00039,120]
[391668336,1760723482216,-200.0,0.00039,120]
[391668337,1760723482225,-39402.48731173,0.00039,120]
[391668338,1760723482235,-500.0,0.00039,120]
[391668339,1760723482244,-11125.62631584,0.00039,120]
[391668340,1760723482254,-124451.83706806,0.00039,120]
[391668341,1760723482264,-8436.0,0.00039,120]
[391668342,1760723482275,-12567.0,0.00039,120]
[391668343,1760723482284,-151.0,0.00039,120]
[391668344,1760723482294,-151.0,0.00039,120]
[391668345,1760723482303,-151.0,0.00039,120]
[391668346,1760723482315,-151.0,0.00039,120]
[391668347,1760723482325,-151.0,0.00039,120]
[391668348,1760723482334,-151.0,0.00039,120]
[391668349,1760723482343,-151.0,0.00039,120]
[391668350,1760723482352,-151.0,0.00039,120]
[391668351,1760723482361,-151.0,0.00039,120]
[391668352,1760723482371,-2911.0,0.00039,2]
[391668353,1760723482381,-153.0,0.00039,120]
[391668354,1760723482391,-6397.21,0.00039,30]
[391668355,1760723482400,-2215.4860605,0.0003902,2]
[391668356,1760723482410,-370.7402469,0.0003902,2]
[391668357,1760723482420,-300.0,0.00039072,10]
[391668358,1760723482430,-2050.0,0.00039073,2]
[391668359,1760723482439,-1267.0,0.00039073,2]
[391668360,1760723482449,-3408.0,0.00039073,2]
[391668361,1760723482459,-749.0,0.00039073,2]
[391668362,1760723482469,-1310.0,0.00039073,2]
[391668363,1760723482479,-605.0,0.00039073,2]
[391668364,1760723482490,-571.0,0.00039073,2]
[391668365,1760723482499,-1589.0,0.00039073,2]
[391668366,1760723482509,-1183.0,0.00039073,2]
[391668367,1760723482519,-902.0,0.00039073,2]
[391668368,1760723482528,-816.0,0.00039073,2]
[391668369,1760723482538,-3356.0,0.00039073,2]
[391668370,1760723482547,-557.0,0.00039073,2]
[391668371,1760723482556,-2219.156,0.00039073,2]
[391668372,1760723482567,-286.25408731,0.00039082,15]
[391668373,1760723482576,-179.0,0.000392,120]
[391668374,1760723482585,-2000.0,0.00039335,120]
[391668375,1760723482599,-300.0,0.00039443,10]
[391668376,1760723482608,-216388.9372,0.00039444,7]
[391668377,1760723482619,-1579.12,0.00039452,120]
[391668378,1760723482628,-600.0,0.00039458,7]
[391668379,1760723482639,-605.0,0.000395,120]
[391668380,1760723482648,-21426.0,0.000395,120]
[391668381,1760723482657,-417.98,0.00039654,2]
[391668382,1760723482667,-1000.0,0.00039666,30]
[391668383,1760723482677,-357.6762453,0.00039799,2]
[391668384,1760723482686,-2479.21,0.0003981,2]
[391668385,1760723482695,-2703.0,0.00039863,120]
[391668386,1760723482705,-179.0,0.000399,120]
[391668387,1760723482715,-191.0,0.00039945,2]
[391668388,1760723482724,-1024.5744102,0.0003997,15]
[391668389,1760723482733,-445.0,0.00039986,90]
[391668390,1760723482743,-532.5026042,0.0003999,120]
[391668391,1760723482753,-151.0,0.00039997,14]
[391668392,1760723482763,-50000.0,0.0004,40]
[391668393,1760723482772,-1000.0,0.0004,7]
[391668394,1760723482781,-414.40450109,0.0004,7]
[391668395,1760723482790,-961.79623847,0.0004,7]
[391668396,1760723482799,-996.36741828,0.0004,20]
[391668397,1760723482808,-383.99546814,0.0004,2]
[391668398,1760723482817,-215.21156854,0.0004,2]
[391668399,1760723482826,-1000.0,0.0004,2]
[391668400,1760723482836,-983.89767249,0.0004,2]
[391668401,1760723482846,-107143.24210398,0.0004,2]
[391668402,1760723482855,-338613.21100796,0.0004,2]
[391668403,1760723482867,-500.0,0.0004,7]
[391668404,1760723482877,-5009.64074741,0.0004,10]
[391668405,1760723482886,-150.0,0.0004,10]
[391668406,1760723482895,-4002.13705705,0.0004,14]
[391668407,1760723482905,-2657.75203594,0.0004,2]